[Event "*** Titled Tuesday 3|2 Blitz"]
[Site "Chess.com"]
[Date "2016.02.02"]
[Round "6"]
[White "ethylalcohol"]
[Black "manubibi"]
[Result "0-1"]
[WhiteElo "1719"]
[BlackElo "2389"]
[TimeControl "180+2"]
[EndTime "12:16:48 PST"]
[Termination "manubibi won on time"]

1. e4 {[%clk 0:03:01.9]} 1... c5 {[%clk 0:03:00.4]} 2. Nc3 {[%clk 0:03:01.3]}
2... d6 {[%clk 0:03:00.9]} 3. g3 {[%clk 0:03:01.5]} 3... Nc6 {[%clk 0:03:00.9]}
4. Bg2 {[%clk 0:03:02.7]} 4... g6 {[%clk 0:03:02.5]} 5. d3 {[%clk 0:03:03.3]}
5... Bg7 {[%clk 0:03:04]} 6. Nge2 {[%clk 0:03:03.6]} 6... e5 {[%clk 0:03:05.1]}
7. Be3 {[%clk 0:03:01.3]} 7... Nge7 {[%clk 0:03:05.9]} 8. Qd2 {[%clk 0:03:01.1]}
8... Nd4 {[%clk 0:03:06.7]} 9. O-O {[%clk 0:02:40.7]} 9... O-O {[%clk
0:03:02.8]} 10. f4 {[%clk 0:02:40.3]} 10... exf4 {[%clk 0:03:02]} 11. Bxf4
{[%clk 0:02:25.3]} 11... Be6 {[%clk 0:02:55.7]} 12. Nxd4 {[%clk 0:02:00.5]}
12... cxd4 {[%clk 0:02:50.2]} 13. Nd5 {[%clk 0:01:54.6]} 13... Bxd5 {[%clk
0:02:37.3]} 14. exd5 {[%clk 0:01:55.4]} 14... Nf5 {[%clk 0:02:38]} 15. Rae1
{[%clk 0:01:48.3]} 15... Qb6 {[%clk 0:02:37.9]} 16. Kh1 {[%clk 0:01:28.9]} 16...
Qxb2 {[%clk 0:02:30]} 17. Rb1 {[%clk 0:01:18.3]} 17... Qxa2 {[%clk 0:02:31.1]}
18. Rxb7 {[%clk 0:01:19]} 18... Ne3 {[%clk 0:02:27.8]} 19. Bxe3 {[%clk
0:00:52.9]} 19... dxe3 {[%clk 0:02:27]} 20. Qxe3 {[%clk 0:00:53.8]} 20... Qxc2
{[%clk 0:02:28.5]} 21. Rxa7 {[%clk 0:00:23.7]} 21... Rxa7 {[%clk 0:02:28.5]} 22.
Qxa7 {[%clk 0:00:24.7]} 22... Qxd3 {[%clk 0:02:30.1]} 23. Qe7 {[%clk 0:00:21.7]}
23... Be5 {[%clk 0:02:29.8]} 24. Qd7 {[%clk 0:00:17.4]} 24... h5 {[%clk
0:02:25.6]} 25. Qe7 {[%clk 0:00:09.4]} 25... Kg7 {[%clk 0:02:23.5]} 26. Qg5
{[%clk 0:00:09.4]} 26... Re8 {[%clk 0:02:14.9]} 27. Qh4 {[%clk 0:00:04.7]} 27...
Qe3 {[%clk 0:02:05]} 0-1

[Event "*** Titled Tuesday 3|2 Blitz"]
[Site "Chess.com"]
[Date "2016.02.02"]
[Round "6"]
[White "Gabrielian_Artur"]
[Black "arnacman"]
[Result "0-1"]
[WhiteElo "2461"]
[BlackElo "2260"]
[TimeControl "180+2"]
[EndTime "12:17:00 PST"]
[Termination "arnacman won by resignation"]

1. e4 {[%clk 0:03:01.9]} 1... c5 {[%clk 0:02:59.6]} 2. Nf3 {[%clk 0:02:48.7]}
2... d6 {[%clk 0:03:00]} 3. d4 {[%clk 0:02:49.3]} 3... cxd4 {[%clk 0:03:01.9]}
4. Nxd4 {[%clk 0:02:50.6]} 4... Nf6 {[%clk 0:03:03.4]} 5. Nc3 {[%clk 0:02:51.8]}
5... a6 {[%clk 0:03:04.8]} 6. Be3 {[%clk 0:02:51.5]} 6... e5 {[%clk 0:03:05.4]}
7. Nb3 {[%clk 0:02:52.4]} 7... Be7 {[%clk 0:03:06.3]} 8. f3 {[%clk 0:02:53.2]}
8... Be6 {[%clk 0:03:04.9]} 9. Qd2 {[%clk 0:02:53.2]} 9... O-O {[%clk 0:03:03]}
10. O-O-O {[%clk 0:02:53.8]} 10... b5 {[%clk 0:02:59.7]} 11. g4 {[%clk
0:02:53.1]} 11... Nbd7 {[%clk 0:02:58.3]} 12. g5 {[%clk 0:02:47.3]} 12... b4
{[%clk 0:02:57.8]} 13. Ne2 {[%clk 0:02:37.4]} 13... Ne8 {[%clk 0:02:46]} 14. f4
{[%clk 0:02:13.8]} 14... exf4 {[%clk 0:02:39.7]} 15. Bxf4 {[%clk 0:02:13.9]}
15... a5 {[%clk 0:02:39.3]} 16. Kb1 {[%clk 0:02:14.7]} 16... Nb6 {[%clk
0:02:23.6]} 17. Ned4 {[%clk 0:02:11]} 17... a4 {[%clk 0:02:21]} 18. Nc6 {[%clk
0:02:02.1]} 18... Qd7 {[%clk 0:02:03.5]} 19. Nbd4 {[%clk 0:02:02.9]} 19... b3
{[%clk 0:01:43.1]} 20. cxb3 {[%clk 0:02:00.6]} 20... axb3 {[%clk 0:01:43.9]} 21.
a3 {[%clk 0:02:02]} 21... d5 {[%clk 0:01:41]} 22. Nxe7+ {[%clk 0:01:59.5]} 22...
Qxe7 {[%clk 0:01:40.9]} 23. Nc6 {[%clk 0:01:54.2]} 23... Qb7 {[%clk 0:01:36.9]}
24. Rc1 {[%clk 0:01:50.9]} 24... Nc4 {[%clk 0:01:17.8]} 25. Bxc4 {[%clk
0:01:49.7]} 25... dxc4 {[%clk 0:01:18.7]} 26. Nd8 {[%clk 0:01:23.1]} 26... Qxe4+
{[%clk 0:01:17]} 27. Ka1 {[%clk 0:01:23.8]} 27... c3 {[%clk 0:01:12.7]} 28. Qe3
{[%clk 0:01:14.3]} 28... Rxa3+ {[%clk 0:01:08]} 0-1

[Event "*** Titled Tuesday 3|2 Blitz"]
[Site "Chess.com"]
[Date "2016.02.02"]
[Round "6"]
[White "Grootneus"]
[Black "HansCoolNiemann"]
[Result "0-1"]
[WhiteElo "2028"]
[BlackElo "2229"]
[TimeControl "180+2"]
[EndTime "12:17:24 PST"]
[Termination "HansCoolNiemann won by resignation"]

1. e4 {[%clk 0:03:01.9]} 1... e6 {[%clk 0:02:57.4]} 2. d4 {[%clk 0:03:02.1]}
2... d5 {[%clk 0:02:57.1]} 3. Nc3 {[%clk 0:03:03.3]} 3... Nf6 {[%clk 0:02:57.1]}
4. Bg5 {[%clk 0:03:02]} 4... dxe4 {[%clk 0:02:55.8]} 5. Nxe4 {[%clk 0:03:02.3]}
5... Be7 {[%clk 0:02:56.7]} 6. Bxf6 {[%clk 0:03:03.2]} 6... gxf6 {[%clk
0:02:58.6]} 7. Nf3 {[%clk 0:03:03.8]} 7... f5 {[%clk 0:02:58.5]} 8. Ned2 {[%clk
0:02:54]} 8... c5 {[%clk 0:02:57.6]} 9. Nb3 {[%clk 0:02:42.1]} 9... cxd4 {[%clk
0:02:53.3]} 10. Qxd4 {[%clk 0:02:43.3]} 10... Qxd4 {[%clk 0:02:51.1]} 11. Nfxd4
{[%clk 0:02:44.1]} 11... a6 {[%clk 0:02:49]} 12. O-O-O {[%clk 0:02:43.7]} 12...
b5 {[%clk 0:02:44.9]} 13. Be2 {[%clk 0:02:36.3]} 13... Bb7 {[%clk 0:02:42.3]}
14. Bf3 {[%clk 0:02:37.6]} 14... Bxf3 {[%clk 0:02:40.7]} 15. Nxf3 {[%clk
0:02:39.5]} 15... Nd7 {[%clk 0:02:38.8]} 16. Rhe1 {[%clk 0:02:27.7]} 16... Nf6
{[%clk 0:02:35.8]} 17. Ne5 {[%clk 0:02:23.2]} 17... Rc8 {[%clk 0:02:29.4]} 18.
Nd4 {[%clk 0:02:07.1]} 18... Ne4 {[%clk 0:02:19.6]} 19. f3 {[%clk 0:02:03.2]}
19... Bg5+ {[%clk 0:02:16.7]} 20. Kb1 {[%clk 0:01:58.9]} 20... Nf2 {[%clk
0:02:16.8]} 21. Rd3 {[%clk 0:01:48.3]} 21... Nxd3 {[%clk 0:02:15]} 22. Nxd3
{[%clk 0:01:50.2]} 22... O-O {[%clk 0:02:15.1]} 23. Nb4 {[%clk 0:01:34.5]} 23...
Bf6 {[%clk 0:02:13.4]} 24. Nb3 {[%clk 0:01:32.8]} 24... Ra8 {[%clk 0:02:01.6]}
25. Nc5 {[%clk 0:01:14.5]} 25... a5 {[%clk 0:01:58.1]} 26. Nbd3 {[%clk
0:01:13.3]} 26... Rfd8 {[%clk 0:01:55.4]} 27. b3 {[%clk 0:00:44.4]} 27... a4
{[%clk 0:01:50.6]} 28. Nf4 {[%clk 0:00:42.9]} 28... axb3 {[%clk 0:01:48.7]} 29.
cxb3 {[%clk 0:00:42.7]} 29... Rd2 {[%clk 0:01:46.8]} 30. Nh5 {[%clk 0:00:38.4]}
30... Bh8 {[%clk 0:01:39.9]} 31. a4 {[%clk 0:00:35.6]} 31... bxa4 {[%clk
0:01:39]} 32. bxa4 {[%clk 0:00:36.8]} 32... Rb2+ {[%clk 0:01:36.9]} 33. Kc1
{[%clk 0:00:37.3]} 33... Rc8 {[%clk 0:01:37.6]} 0-1

[Event "*** Titled Tuesday 3|2 Blitz"]
[Site "Chess.com"]
[Date "2016.02.02"]
[Round "6"]
[White "Er_is_geen_hoop_meer"]
[Black "Sawyer2908"]
[Result "0-1"]
[WhiteElo "2293"]
[BlackElo "2281"]
[TimeControl "180+2"]
[EndTime "12:18:36 PST"]
[Termination "Sawyer2908 won by checkmate"]

1. d4 {[%clk 0:03:01.9]} 1... Nf6 {[%clk 0:03:00.2]} 2. c4 {[%clk 0:03:02.6]}
2... e6 {[%clk 0:03:00.7]} 3. Nc3 {[%clk 0:03:03.9]} 3... Bb4 {[%clk 0:03:00]}
4. Qc2 {[%clk 0:03:05.3]} 4... O-O {[%clk 0:02:59.6]} 5. Nf3 {[%clk 0:03:06.7]}
5... d6 {[%clk 0:02:57.6]} 6. Bd2 {[%clk 0:02:57.3]} 6... Nbd7 {[%clk 0:02:57]}
7. a3 {[%clk 0:02:51.5]} 7... Bxc3 {[%clk 0:02:56]} 8. Bxc3 {[%clk 0:02:53.4]}
8... b6 {[%clk 0:02:57.1]} 9. e4 {[%clk 0:02:44.9]} 9... Bb7 {[%clk 0:02:52.5]}
10. Bd3 {[%clk 0:02:41.4]} 10... h6 {[%clk 0:02:30.7]} 11. O-O-O {[%clk
0:02:33]} 11... c5 {[%clk 0:01:57.3]} 12. d5 {[%clk 0:02:33.9]} 12... e5 {[%clk
0:01:54.4]} 13. Rdg1 {[%clk 0:02:29.4]} 13... Nh5 {[%clk 0:01:34.9]} 14. g3
{[%clk 0:02:23.3]} 14... Rc8 {[%clk 0:01:25]} 15. Nh4 {[%clk 0:02:24.5]} 15...
g6 {[%clk 0:01:22.5]} 16. f4 {[%clk 0:02:23.4]} 16... exf4 {[%clk 0:01:19.6]}
17. e5 {[%clk 0:02:25.3]} 17... Nxe5 {[%clk 0:00:57.6]} 18. Bxe5 {[%clk
0:02:26.3]} 18... dxe5 {[%clk 0:00:58.4]} 19. Bxg6 {[%clk 0:02:28.2]} 19... fxg6
{[%clk 0:00:47.8]} 20. Qxg6+ {[%clk 0:02:30.1]} 20... Ng7 {[%clk 0:00:48.4]} 21.
gxf4 {[%clk 0:02:29.8]} 21... Qf6 {[%clk 0:00:49.8]} 22. Qxf6 {[%clk 0:02:29.1]}
22... Rxf6 {[%clk 0:00:45.3]} 23. fxe5 {[%clk 0:02:31]} 23... Rf4 {[%clk
0:00:41.6]} 24. Ng6 {[%clk 0:02:32.3]} 24... Rxc4+ {[%clk 0:00:42.2]} 25. Kb1
{[%clk 0:02:33.8]} 25... Re8 {[%clk 0:00:32.9]} 26. Rd1 {[%clk 0:02:31.5]} 26...
Rd4 {[%clk 0:00:32.4]} 27. Rxd4 {[%clk 0:01:31.7]} 27... cxd4 {[%clk 0:00:32.3]}
28. Rd1 {[%clk 0:01:33.3]} 28... Bxd5 {[%clk 0:00:31.4]} 29. Rxd4 {[%clk
0:01:34.9]} 29... Be6 {[%clk 0:00:32.8]} 30. Kc1 {[%clk 0:01:31.3]} 30... Bf5
{[%clk 0:00:31.8]} 31. Nf4 {[%clk 0:01:30.4]} 31... Rxe5 {[%clk 0:00:30.4]} 32.
Rd8+ {[%clk 0:01:31.7]} 32... Kh7 {[%clk 0:00:31.5]} 33. Nd5 {[%clk 0:01:31.9]}
33... Re6 {[%clk 0:00:23.6]} 34. Kd2 {[%clk 0:01:29.7]} 34... h5 {[%clk
0:00:19.8]} 35. b4 {[%clk 0:01:30.3]} 35... Be4 {[%clk 0:00:18.7]} 36. Nf4
{[%clk 0:01:31.2]} 36... Rf6 {[%clk 0:00:18]} 37. Ke3 {[%clk 0:01:32.7]} 37...
Bc6 {[%clk 0:00:18.3]} 38. Rc8 {[%clk 0:01:33.6]} 38... Nf5+ {[%clk 0:00:18.7]}
39. Kd2 {[%clk 0:01:35]} 39... Rd6+ {[%clk 0:00:19]} 40. Kc3 {[%clk 0:01:35]}
40... Be4 {[%clk 0:00:17.8]} 41. Rc7+ {[%clk 0:01:34]} 41... Kh6 {[%clk
0:00:17.1]} 42. Rxa7 {[%clk 0:01:35.9]} 42... Kg5 {[%clk 0:00:16.7]} 43. Ne2
{[%clk 0:01:34.3]} 43... Rd3+ {[%clk 0:00:16.5]} 44. Kc4 {[%clk 0:01:24.9]}
44... Nd6# {[%clk 0:00:16.7]} 0-1

[Event "*** Titled Tuesday 3|2 Blitz"]
[Site "Chess.com"]
[Date "2016.02.02"]
[Round "6"]
[White "IMRosen"]
[Black "Mornar1951"]
[Result "1-0"]
[WhiteElo "2277"]
[BlackElo "2583"]
[TimeControl "180+2"]
[EndTime "12:18:41 PST"]
[Termination "IMRosen won by resignation"]

1. d4 {[%clk 0:03:01.9]} 1... Nf6 {[%clk 0:02:21.8]} 2. Nf3 {[%clk 0:03:02.3]}
2... d5 {[%clk 0:02:22.5]} 3. Bf4 {[%clk 0:03:02.8]} 3... c5 {[%clk 0:02:22.6]}
4. e3 {[%clk 0:03:02.3]} 4... Nc6 {[%clk 0:02:23.7]} 5. Nbd2 {[%clk 0:03:03.8]}
5... Qb6 {[%clk 0:02:21.2]} 6. dxc5 {[%clk 0:03:04.2]} 6... Qxb2 {[%clk
0:02:20.9]} 7. Rb1 {[%clk 0:03:02.2]} 7... Qxa2 {[%clk 0:02:21.9]} 8. Bb5 {[%clk
0:02:53.5]} 8... Bd7 {[%clk 0:02:14.2]} 9. O-O {[%clk 0:02:47.3]} 9... e6 {[%clk
0:02:14.6]} 10. Nb3 {[%clk 0:02:41.3]} 10... Ne4 {[%clk 0:02:05.7]} 11. Ra1
{[%clk 0:02:33.6]} 11... Qb2 {[%clk 0:02:05.2]} 12. Bxc6 {[%clk 0:02:34.5]}
12... Bxc6 {[%clk 0:02:03.5]} 13. Be5 {[%clk 0:02:34.3]} 13... d4 {[%clk
0:01:53.9]} 14. Bxd4 {[%clk 0:02:33.6]} 14... Nc3 {[%clk 0:01:55.2]} 15. Qd2
{[%clk 0:02:30.6]} 15... Bxf3 {[%clk 0:01:56.3]} 16. Bxc3 {[%clk 0:02:25.4]}
16... Qxa1 {[%clk 0:01:51.7]} 17. Rxa1 {[%clk 0:02:22.7]} 17... Bd5 {[%clk
0:01:53.6]} 18. Rd1 {[%clk 0:02:18.7]} 18... f6 {[%clk 0:01:54]} 19. e4 {[%clk
0:02:19.1]} 19... Bc6 {[%clk 0:01:53.8]} 20. Na5 {[%clk 0:02:18.8]} 20... Be7
{[%clk 0:01:54.2]} 21. Nxc6 {[%clk 0:02:19.7]} 21... bxc6 {[%clk 0:01:56.1]} 22.
e5 {[%clk 0:02:03.1]} 22... Kf7 {[%clk 0:01:50.3]} 23. exf6 {[%clk 0:02:00.4]}
23... gxf6 {[%clk 0:01:52.2]} 24. Qe2 {[%clk 0:02:01.5]} 24... h5 {[%clk
0:01:49.5]} 25. Re1 {[%clk 0:01:56.7]} 25... e5 {[%clk 0:01:49.1]} 26. Bxe5
{[%clk 0:01:54.9]} 26... fxe5 {[%clk 0:01:48.8]} 27. Qxe5 {[%clk 0:01:56.8]}
27... Rae8 {[%clk 0:01:49.6]} 28. Qe6+ {[%clk 0:01:54.8]} 28... Kg7 {[%clk
0:01:50]} 29. Qxc6 {[%clk 0:01:56.7]} 29... Kf7 {[%clk 0:01:47.1]} 30. Qd5+
{[%clk 0:01:53.8]} 30... Kg7 {[%clk 0:01:48]} 31. g3 {[%clk 0:01:44.4]} 31... h4
{[%clk 0:01:40.9]} 32. Kg2 {[%clk 0:01:37.9]} 32... h3+ {[%clk 0:01:40.7]} 33.
Kg1 {[%clk 0:01:38.2]} 33... Rhf8 {[%clk 0:01:35.5]} 34. Kf1 {[%clk 0:01:36.2]}
34... Rf7 {[%clk 0:01:10.1]} 35. Qd4+ {[%clk 0:01:32.9]} 35... Kh7 {[%clk
0:00:55.9]} 36. f4 {[%clk 0:01:24.6]} 36... Rd8 {[%clk 0:00:48.9]} 37. Qe4+
{[%clk 0:01:21.9]} 37... Kg7 {[%clk 0:00:48.9]} 38. Qe6 {[%clk 0:01:14]} 38...
Rd2 {[%clk 0:00:43.8]} 39. Qg4+ {[%clk 0:01:14.2]} 39... Kf8 {[%clk 0:00:34.8]}
40. Qxh3 {[%clk 0:01:13.1]} 40... Bf6 {[%clk 0:00:35.8]} 41. Re2 {[%clk
0:01:13.1]} 41... Rd1+ {[%clk 0:00:36]} 42. Kg2 {[%clk 0:01:10.8]} 42... Bd4
{[%clk 0:00:37.3]} 43. Qh6+ {[%clk 0:01:07.4]} 43... Bg7 {[%clk 0:00:27.6]} 44.
Qh5 {[%clk 0:01:05.8]} 44... Bd4 {[%clk 0:00:28.1]} 45. Re8+ {[%clk 0:01:03.8]}
45... Kxe8 {[%clk 0:00:27.6]} 46. Qxd1 {[%clk 0:01:05.7]} 1-0

[Event "*** Titled Tuesday 3|2 Blitz"]
[Site "Chess.com"]
[Date "2016.02.02"]
[Round "6"]
[White "kleinebeer98"]
[Black "stepanosinovsky"]
[Result "1-0"]
[WhiteElo "2454"]
[BlackElo "2266"]
[TimeControl "180+2"]
[EndTime "12:18:42 PST"]
[Termination "kleinebeer98 won by checkmate"]

1. e4 {[%clk 0:03:01.9]} 1... e5 {[%clk 0:02:59.4]} 2. Nf3 {[%clk 0:03:02.2]}
2... Nc6 {[%clk 0:02:58.9]} 3. d4 {[%clk 0:03:03.7]} 3... exd4 {[%clk
0:02:58.5]} 4. Nxd4 {[%clk 0:03:05.6]} 4... Bc5 {[%clk 0:02:59.2]} 5. Nb3 {[%clk
0:03:00.5]} 5... Bb6 {[%clk 0:02:59.7]} 6. Nc3 {[%clk 0:03:02.1]} 6... Nf6
{[%clk 0:02:58.6]} 7. Bd3 {[%clk 0:02:53.7]} 7... O-O {[%clk 0:02:40.6]} 8. O-O
{[%clk 0:02:50.2]} 8... h6 {[%clk 0:02:30.4]} 9. Kh1 {[%clk 0:02:40]} 9... d5
{[%clk 0:02:29.8]} 10. exd5 {[%clk 0:02:33.4]} 10... Ne5 {[%clk 0:02:21.4]} 11.
Be2 {[%clk 0:02:31]} 11... Nfg4 {[%clk 0:02:15.9]} 12. Bf4 {[%clk 0:01:35.6]}
12... Re8 {[%clk 0:01:05.5]} 13. Bg3 {[%clk 0:01:29.9]} 13... h5 {[%clk
0:00:56.2]} 14. h3 {[%clk 0:01:25.3]} 14... h4 {[%clk 0:00:44.2]} 15. Bxe5
{[%clk 0:01:25.8]} 15... Nxe5 {[%clk 0:00:42.2]} 16. Qd2 {[%clk 0:01:24.1]}
16... Bf5 {[%clk 0:00:39.5]} 17. Rad1 {[%clk 0:01:21.5]} 17... Qd7 {[%clk
0:00:40]} 18. Nd4 {[%clk 0:01:17.3]} 18... Bxh3 {[%clk 0:00:32.2]} 19. f4 {[%clk
0:01:05.9]} 19... Ng4 {[%clk 0:00:26.1]} 20. gxh3 {[%clk 0:00:58.4]} 20... Ne3
{[%clk 0:00:24.8]} 21. Bg4 {[%clk 0:00:55.1]} 21... Nxg4 {[%clk 0:00:15.1]} 22.
hxg4 {[%clk 0:00:54.7]} 22... Qxg4 {[%clk 0:00:17]} 23. Rg1 {[%clk 0:00:54.1]}
23... Qh5 {[%clk 0:00:16.2]} 24. Qg2 {[%clk 0:00:49.6]} 24... g6 {[%clk
0:00:11.6]} 25. f5 {[%clk 0:00:47.6]} 25... h3 {[%clk 0:00:11.9]} 26. Qg4 {[%clk
0:00:46.7]} 26... Qxg4 {[%clk 0:00:12]} 27. Rxg4 {[%clk 0:00:48.6]} 27... Kg7
{[%clk 0:00:08.3]} 28. fxg6 {[%clk 0:00:47.9]} 28... fxg6 {[%clk 0:00:10.2]} 29.
Rdg1 {[%clk 0:00:47.6]} 29... Kf7 {[%clk 0:00:08.1]} 30. Rf1+ {[%clk 0:00:46.1]}
30... Kg7 {[%clk 0:00:08.9]} 31. Ne6+ {[%clk 0:00:44]} 31... Kh7 {[%clk
0:00:10.1]} 32. Rf7+ {[%clk 0:00:42.4]} 32... Kg8 {[%clk 0:00:09.9]} 33. Rg7+
{[%clk 0:00:43.4]} 33... Kh8 {[%clk 0:00:09.4]} 34. Rh4# {[%clk 0:00:44.6]} 1-0

[Event "*** Titled Tuesday 3|2 Blitz"]
[Site "Chess.com"]
[Date "2016.02.02"]
[Round "6"]
[White "gumersindo"]
[Black "Saitama_Hero"]
[Result "0-1"]
[WhiteElo "2238"]
[BlackElo "2098"]
[TimeControl "180+2"]
[EndTime "12:18:47 PST"]
[Termination "Saitama_Hero won by resignation"]

1. d4 {[%clk 0:03:01.9]} 1... Nf6 {[%clk 0:03:01.4]} 2. c4 {[%clk 0:03:02.8]}
2... g6 {[%clk 0:03:01.2]} 3. Nc3 {[%clk 0:03:04.3]} 3... d5 {[%clk 0:03:02.4]}
4. Bg5 {[%clk 0:03:04.3]} 4... Bg7 {[%clk 0:03:03]} 5. Bxf6 {[%clk 0:03:01.9]}
5... Bxf6 {[%clk 0:03:02.7]} 6. cxd5 {[%clk 0:03:03.3]} 6... c6 {[%clk 0:03:02]}
7. e4 {[%clk 0:02:59.7]} 7... cxd5 {[%clk 0:03:01.2]} 8. e5 {[%clk 0:03:00.4]}
8... Bg7 {[%clk 0:03:01.1]} 9. h3 {[%clk 0:03:01.9]} 9... Nc6 {[%clk 0:03:00.5]}
10. Nf3 {[%clk 0:03:03.1]} 10... O-O {[%clk 0:03:00.9]} 11. Bb5 {[%clk
0:03:03.3]} 11... e6 {[%clk 0:02:56.6]} 12. O-O {[%clk 0:03:03.4]} 12... Na5
{[%clk 0:02:54.9]} 13. b4 {[%clk 0:03:00.1]} 13... a6 {[%clk 0:02:49.2]} 14. Bd3
{[%clk 0:02:54.6]} 14... Nc6 {[%clk 0:02:28.1]} 15. a3 {[%clk 0:02:53.8]} 15...
b5 {[%clk 0:02:27.9]} 16. Rc1 {[%clk 0:02:50.6]} 16... Qb6 {[%clk 0:02:29.1]}
17. Ne2 {[%clk 0:02:45.9]} 17... f6 {[%clk 0:02:27.8]} 18. Qc2 {[%clk
0:02:31.5]} 18... Bd7 {[%clk 0:02:27]} 19. Bxg6 {[%clk 0:02:32.3]} 19... hxg6
{[%clk 0:02:26.1]} 20. Qxg6 {[%clk 0:02:33.7]} 20... Be8 {[%clk 0:02:19.3]} 21.
Qg4 {[%clk 0:02:28.5]} 21... Ne7 {[%clk 0:01:56.5]} 22. Nf4 {[%clk 0:02:22.2]}
22... Nf5 {[%clk 0:01:51.9]} 23. exf6 {[%clk 0:02:19.4]} 23... Rxf6 {[%clk
0:01:50.3]} 24. Rfe1 {[%clk 0:02:01.2]} 24... Nxd4 {[%clk 0:01:42.5]} 25. Nxd4
{[%clk 0:01:59.5]} 25... Qxd4 {[%clk 0:01:41.6]} 26. Rc7 {[%clk 0:01:59.3]}
26... Rxf4 {[%clk 0:01:26.4]} 27. Rxg7+ {[%clk 0:01:57.4]} 27... Qxg7 {[%clk
0:01:27.5]} 28. Qxf4 {[%clk 0:01:57.9]} 28... Bd7 {[%clk 0:01:26.4]} 29. Qd6
{[%clk 0:01:55.2]} 29... Rf8 {[%clk 0:01:02.1]} 30. Re3 {[%clk 0:01:55.3]} 30...
Qa1+ {[%clk 0:00:44.3]} 31. Kh2 {[%clk 0:01:55.3]} 31... Rf7 {[%clk 0:00:46.2]}
32. Rg3+ {[%clk 0:01:47.2]} 32... Kh7 {[%clk 0:00:46.1]} 33. Qb8 {[%clk
0:01:35.7]} 33... Qh8 {[%clk 0:00:43.7]} 34. Qa7 {[%clk 0:01:27.1]} 34... Qe5
{[%clk 0:00:35.6]} 35. Qa8 {[%clk 0:01:20.7]} 35... Rg7 {[%clk 0:00:35.1]} 36.
Qxa6 {[%clk 0:01:17]} 36... Rxg3 {[%clk 0:00:33.7]} 37. fxg3 {[%clk 0:01:18.1]}
37... d4 {[%clk 0:00:34.7]} 38. Qb7 {[%clk 0:01:14.4]} 38... Qd5 {[%clk
0:00:35.2]} 39. Qb8 {[%clk 0:01:13.1]} 39... d3 {[%clk 0:00:35.4]} 40. Qf4
{[%clk 0:01:13.1]} 40... d2 {[%clk 0:00:36.4]} 41. Qh4+ {[%clk 0:01:14]} 41...
Kg6 {[%clk 0:00:37.4]} 42. Qg4+ {[%clk 0:01:15.4]} 42... Kf7 {[%clk 0:00:38.9]}
43. Qf4+ {[%clk 0:01:16.1]} 43... Ke7 {[%clk 0:00:39.9]} 44. Qh4+ {[%clk
0:01:17.1]} 44... Kd6 {[%clk 0:00:38.4]} 45. Qf4+ {[%clk 0:01:17.7]} 45... Kc6
{[%clk 0:00:37.2]} 0-1

[Event "*** Titled Tuesday 3|2 Blitz"]
[Site "Chess.com"]
[Date "2016.02.02"]
[Round "6"]
[White "GMHess"]
[Black "ZEN-22"]
[Result "0-1"]
[WhiteElo "2462"]
[BlackElo "2362"]
[TimeControl "180+2"]
[EndTime "12:18:51 PST"]
[Termination "ZEN-22 won by resignation"]

1. b3 {[%clk 0:03:01.9]} 1... e5 {[%clk 0:02:55.7]} 2. Bb2 {[%clk 0:02:55.9]}
2... d6 {[%clk 0:02:57.6]} 3. e3 {[%clk 0:02:56.4]} 3... g6 {[%clk 0:02:59.2]}
4. d4 {[%clk 0:02:56.7]} 4... Bg7 {[%clk 0:03:00.7]} 5. dxe5 {[%clk 0:02:57.7]}
5... Nc6 {[%clk 0:03:01.5]} 6. Bb5 {[%clk 0:02:58.4]} 6... Bd7 {[%clk
0:03:02.7]} 7. Bxc6 {[%clk 0:02:53.7]} 7... Bxc6 {[%clk 0:03:03.4]} 8. Nf3
{[%clk 0:02:55.3]} 8... Nh6 {[%clk 0:03:04.2]} 9. Nbd2 {[%clk 0:02:50.4]} 9...
dxe5 {[%clk 0:03:00.5]} 10. Nc4 {[%clk 0:02:46.7]} 10... f6 {[%clk 0:02:58.4]}
11. Qe2 {[%clk 0:02:38.6]} 11... O-O {[%clk 0:02:54.7]} 12. Na5 {[%clk
0:02:33.4]} 12... Qd5 {[%clk 0:02:33]} 13. Nxc6 {[%clk 0:01:57.3]} 13... Qxc6
{[%clk 0:02:33.6]} 14. O-O-O {[%clk 0:01:58]} 14... a5 {[%clk 0:02:33]} 15. a4
{[%clk 0:01:56.3]} 15... Rfd8 {[%clk 0:02:28.5]} 16. h4 {[%clk 0:01:51.3]} 16...
Nf7 {[%clk 0:02:27.4]} 17. h5 {[%clk 0:01:51.9]} 17... g5 {[%clk 0:02:28.5]} 18.
e4 {[%clk 0:01:17.2]} 18... Nd6 {[%clk 0:02:29]} 19. Nd2 {[%clk 0:01:14]} 19...
Bf8 {[%clk 0:02:17.6]} 20. g3 {[%clk 0:00:53.3]} 20... Re8 {[%clk 0:02:14.8]}
21. f4 {[%clk 0:00:42.4]} 21... exf4 {[%clk 0:02:14.1]} 22. gxf4 {[%clk
0:00:40.3]} 22... Nxe4 {[%clk 0:02:15.1]} 23. fxg5 {[%clk 0:00:23]} 23... fxg5
{[%clk 0:01:07.2]} 24. Nxe4 {[%clk 0:00:20.9]} 24... Qxe4 {[%clk 0:01:02.4]} 25.
Qb5 {[%clk 0:00:20.5]} 25... h6 {[%clk 0:00:57]} 26. Rhe1 {[%clk 0:00:19.3]}
26... Qxe1 {[%clk 0:00:53.5]} 27. Rxe1 {[%clk 0:00:21.2]} 27... Rxe1+ {[%clk
0:00:54.3]} 28. Kd2 {[%clk 0:00:22.5]} 28... Rae8 {[%clk 0:00:55.1]} 29. Qd5+
{[%clk 0:00:14]} 29... R1e6 {[%clk 0:00:54.6]} 30. Bc3 {[%clk 0:00:08.8]} 30...
b6 {[%clk 0:00:48.1]} 31. Kc1 {[%clk 0:00:06]} 31... Bg7 {[%clk 0:00:47.3]} 32.
Be1 {[%clk 0:00:02.2]} 32... Re7 {[%clk 0:00:47.6]} 33. Bg3 {[%clk 0:00:03.3]}
33... Kh8 {[%clk 0:00:48.2]} 34. Bxc7 {[%clk 0:00:03.3]} 34... Re1+ {[%clk
0:00:48.3]} 35. Kd2 {[%clk 0:00:04.1]} 35... R7e2+ {[%clk 0:00:48.7]} 36. Kd3
{[%clk 0:00:05.6]} 36... Rd1+ {[%clk 0:00:50.6]} 37. Kxe2 {[%clk 0:00:06.9]}
37... Rxd5 {[%clk 0:00:51.8]} 38. Bxb6 {[%clk 0:00:08.8]} 38... g4 {[%clk
0:00:52]} 39. c4 {[%clk 0:00:10.2]} 39... Rxh5 {[%clk 0:00:53.9]} 40. c5 {[%clk
0:00:11]} 40... Bd4 {[%clk 0:00:55]} 41. Kd3 {[%clk 0:00:10.8]} 41... Bxc5
{[%clk 0:00:56.3]} 0-1